Cogmind - Beta 15 @@@ ROGUE MODE // 2025.09.12 @ 14:36:41 Player: Petvaria Result: Destroyed by AA-6HW(x) with Makeshift Spear Performance ------------- Evolutions (0) 0 Regions Visited (3) 600 Robots Destroyed (26) 130 Value Destroyed (745) 745 Prototype IDs (6) 120 Alien Tech Used (0) 0 Bonus (800) 800 TOTAL SCORE: 2395 Bonus ------- Registered with UFD 300 Met Optimus in HQ 500 Cogmind --------- Core Integrity 0/250 Matter 288/300 Energy 140/140 System Corruption 0% Temperature Warm (164) Movement Rolling (130) Ox2 Location -7/Scraptown Parts ------- > --- POWER (1) -------- Light Deuterium Engine > --- PROPULSION (2) --- Overtuned Treads Compact Wheel > --- UTILITY (2) ------ Large Storage Unit Hardened Light Armor Plating > --- WEAPON (2) ------- Overtuned Pulse Rifle Heavy Battle Rifle > --- INVENTORY (15) --- Overtuned Treads Overtuned Treads Overtuned Treads Overtuned Treads Medium Storage Unit Light Armor Plating Hardened Light Armor Plating Hardened Light Armor Plating Improved Light Armor Plating Makeshift Light Armor Plating Assault Rifle Shotgun Barrage Gun CPS Tube (1) Katana Peak State ------------ > --- POWER ------------ Light Deuterium Engine > --- PROPULSION ------- Overtuned Treads Compact Wheel > --- UTILITY ---------- Large Storage Unit Hardened Light Armor Plating > --- WEAPON ----------- Overtuned Barrage Gun Heavy Battle Rifle > --- INVENTORY -------- Overtuned Treads Overtuned Treads Overtuned Treads Aluminum Leg Medium Storage Unit Light Armor Plating Hardened Light Armor Plating Hardened Light Armor Plating Improved Light Armor Plating Makeshift Light Armor Plating Assault Rifle Shotgun Barrage Gun CPS Tube Katana [Rating: 20] Favorites ----------- Power Ion Engine Engine Ion Engine Propulsion Aluminum Leg Treads Light Treads Leg Aluminum Leg Wheel Compact Wheel Utility Hardened Light Armor Plating Storage Large Storage Unit Protection Hardened Light Armor Plating Weapon Shotgun Energy Gun Small Laser Ballistic Gun Shotgun Special Weapon CPS Tube Build | -11 -10 -10 -7 ------- Run | Yrd Mat Sub Scr Slots Evolved . | . . . . Power . | . . . . Propulsion . | . . . . Utility . | . . . . Weapon . | . . . . Parts Attached 23 | 6 9 . 8 Power 3 | 1 1 . 1 Engine 3 | 1 1 . 1 Core . | . . . . Reactor . | . . . . Propulsion 6 | 2 2 . 2 Treads 3 | 2 . . 1 Leg 2 | . 2 . . Wheel 1 | . . . 1 Hover . | . . . . Flight . | . . . . Utility 4 | 1 3 . . Device . | . . . . Storage 2 | 1 1 . . Processor . | . . . . Hackware . | . . . . Protection 2 | . 2 . . Artifact . | . . . . Weapon 10 | 2 3 . 5 Energy Gun 3 | 2 . . 1 Energy Cannon . | . . . . Ballistic Gun 6 | . 3 . 3 Ballistic Cannon . | . . . . Launcher . | . . . . Special Weapon 1 | . . . 1 Impact Weapon . | . . . . Slashing Weapon . | . . . . Piercing Weapon . | . . . . Special Melee Weapon . | . . . . Unidentified Prototypes . | . . . . Parts Lost 3 | . 3 . . Power 1 | . 1 . . Propulsion . | . . . . Utility 1 | . 1 . . Weapon 1 | . 1 . . Highest Loss Streak 1 | . 1 . . To Critical Strikes . | . . . . Average Backups 9 | 3 7 7 11 Power . | . . . . Propulsion 2 | 1 2 1 1 Utility 4 | . 3 4 4 Weapon 2 | . 1 2 3 Tool/Special . | . . . . Unused Backups 18 | . 3 . 15 Power . | . . . . Propulsion 7 | . 2 . 5 Utility 6 | . . . 6 Weapon 5 | . 1 . 4 Tool/Special . | . . . . Average Slot Usage (%) 86 | . 88 85 85 Engine 5 | . 13 . 1 Treads 7 | . 18 . 1 Leg 14 | . 9 28 16 Wheel 5 | . . . 9 Storage 14 | . 14 14 14 Protection 10 | . 4 14 14 Energy Gun 4 | . 10 . . Ballistic Gun 23 | . 17 28 27 Peak Build Rating 20 | 6 10 10 20 Average Rating 10 | 4 8 10 11 On Entrance 6 | . 6 10 10 Naked Turns . | . . . . Heaviest Build 37 | 13 31 31 37 Greatest Support 40 | 40 40 20 20 Greatest Overweight (x) 2 | . 1 1 2 Average Overweight (x) . | . . 1 1 Largest Inventory Capacity 15 | 8 15 15 15 Average Capacity 12 | 6 8 15 15 Most Carried 15 | 6 8 8 15 Average Carried 9 | 3 7 7 11 Final Capacity 15 | 8 15 15 15 Final Carried 15 | 6 7 8 15 Class Distribution -------------------- 97% | Mutant Dominant Class ---------------- Mutant | -10/Materials Mutant | -10/Subcaves Mutant | -7/Scraptown Resources | -11 -10 -10 -7 ----------- Run | Yrd Mat Sub Scr Matter Collected 560 | 202 261 . 97 Remotely . | . . . . Salvage Created 988 | . 873 . 115 Parts 51 | . 46 . 5 Haulers Intercepted 1 | . 1 . . Recyclers Shooed 1 | . 1 . . Parts Field Recycled . | . . . . Retrieved Matter . | . . . . Parts Self-Destructed 7 | . . 7 . Prevented . | . . . . Kills | -11 -10 -10 -7 ------- Run | Yrd Mat Sub Scr Combat Hostiles Destroyed 24 | . 22 . 2 Guns 23 | . 21 . 2 Classes Destroyed 6 | . 4 . 2 Hauler 1 | . 1 . . Recycler 1 | . 1 . . Swarmer 6 | . 6 . . Grunt 16 | . 16 . . Ranger 1 | . . . 1 Scrapper 1 | . . . 1 Best Kill Streak 4 | . 4 . 1 Combat Bots Only 4 | . 4 . 1 Max Kills in Single Turn 1 | . 1 . 1 Gunslinging . | . . . . Exploded . | . . . . Melee . | . . . . Uniques/NPCs Destroyed . | . . . . Combat | -11 -10 -10 -7 -------- Run | Yrd Mat Sub Scr Hostile Shots Fired 109 | . 90 . 19 Missed 16 | . 13 . 3 Hits 93 | . 77 . 16 Melee 3 | . . . 3 Projectile 90 | . 77 . 13 Critical Strikes 2 | . 1 . 1 Damage Taken 1225 | . 871 . 354 Core 280 | . 141 . 139 Absorbed by Shields . | . . . . Core Remaining (%) 100 | 100 . . . Volleys Fired 87 | . 78 . 9 Largest 2 | . 2 . 2 Hottest 113 | . 90 . 113 Shots Fired 163 | . 150 . 13 Gun 162 | . 150 . 12 Cannon . | . . . . Launcher . | . . . . Special 1 | . . . 1 Kinetic 67 | . 58 . 9 Thermal 95 | . 92 . 3 Explosive . | . . . . Electromagnetic . | . . . . Robot Hit Streak 17 | . 17 . 4 Robot Miss Streak 4 | . 4 . 1 Penetration Max . | . . . . Secondary Targets 2 | . 2 . . Max Gunslinging Chain 1 | . 1 . . Shots Hit Robots 119 | . 109 . 10 Core Hits 48 | . 46 . 2 Critical Kills . | . . . . Critical Parts Destroyed 1 | . 1 . . Critical Strikes 5 | . 5 . . Burn 4 | . 4 . . Destroy 1 | . 1 . . Melee Attacks . | . . . . Impact . | . . . . Slashing . | . . . . Piercing . | . . . . Sneak Attacks . | . . . . Combat Hostiles . | . . . . Follow-up Attacks . | . . . . Damage Inflicted 1439 | . 1251 . 188 Guns 1437 | . 1249 . 188 Cannons . | . . . . Explosions . | . . . . Melee . | . . . . Ramming 2 | . 2 . . Kinetic 634 | . 485 . 149 Thermal 803 | . 764 . 39 Explosive . | . . . . Electromagnetic . | . . . . Impact . | . . . . Slashing . | . . . . Piercing . | . . . . Highest Corruption . | . . . . Average Corruption . | . . . . Corruption Purged . | . . . . Corruption Blocked . | . . . . Overload Shots . | . . . . Overflow Damage . | . . . . Projectiles . | . . . . Explosions . | . . . . Melee . | . . . . Knockbacks . | . . . . Impact . | . . . . Kinetic . | . . . . Secondary . | . . . . Self-Inflicted Damage . | . . . . Shots . | . . . . Rammed . | . . . . Targets Rammed 1 | . 1 . . Kicked 1 | . 1 . . Crushed . | . . . . Highest Temperature 390 | . 390 . 220 Average Temperature 127 | . 129 . 104 Received Heat Transfer 552 | . 432 . 120 Effects 3 | . 3 . . Energy Bleed 2 | . 2 . . Short Circuit 1 | . 1 . . Siege Activations . | . . . . Martial Activations . | . . . . Shielding Activations . | . . . . Robots Disrupted . | . . . . Combat Hostiles . | . . . . Robots Corrupted . | . . . . Combat Hostiles . | . . . . Parts Fried . | . . . . Impact Corruptions . | . . . . Robots Melted 1 | . 1 . . Combat Hostiles 1 | . 1 . . Parts Melted 6 | . 4 . 2 Heat Transferred 2498 | . 2411 . 87 Parts Sabotaged . | . . . . Parts Stolen . | . . . . Parts Stripped . | . . . . Power Chain Reactions . | . . . . Alert | -11 -10 -10 -7 ------- Run | Yrd Mat Sub Scr Maximum Alert Level 1 | . 1 . . Low Security (%) 79 | 100 78 . . Level 1 20 | . 21 . . Level 2 . | . . . . Level 3 . | . . . . Level 4 . | . . . . Level 5 . | . . . . High Security . | . . . . Max Security . | . . . . Peak Influence 296 | . 296 . . Initial . | . . . . Average 123 | . 131 . . Influence Increases 612 | . 612 . . Destroy 0b10 Robot/C 440 | . 440 . . Destroy 0b10 Robot/NC 10 | . 10 . . Destroy Leader 102 | . 102 . . Partial Spotted 15 | . 15 . . Lose Combat Pursuer 45 | . 45 . . Influence Decreases 612 | . 556 56 . Entered New Map 28 | . . 28 . Time Decay 554 | . 526 28 . Lost Part 30 | . 30 . . Squads Dispatched 5 | . 5 . . Investigation 1 | . 1 . . Extermination . | . . . . Reinforcement 4 | . 4 . . Assault . | . . . . Garrison . | . . . . Intercept . | . . . . Searches Triggered . | . . . . Construction Impeded . | . . . . Haulers Reinforced . | . . . . Active Scanning Responses . | . . . . Cargo Convoy Interrupts . | . . . . Stealth | -11 -10 -10 -7 --------- Run | Yrd Mat Sub Scr Distress Signals 4 | . 4 . . Communications Jammed . | . . . . Distress Signals . | . . . . Times Spotted 63 | . 47 . 16 Peak Tracking Total 4 | . 4 . 3 Tactical Retreats 2 | . 2 . . Traps | -11 -10 -10 -7 ------- Run | Yrd Mat Sub Scr Traps Triggered 1 | . 1 . . Indirectly . | . . . . Trap Hack Attempts . | . . . . Triggered . | . . . . Disarmed . | . . . . Reprogrammed . | . . . . Reused . | . . . . Traps Extracted . | . . . . Installed . | . . . . Triggered . | . . . . Machines | -11 -10 -10 -7 ---------- Run | Yrd Mat Sub Scr Machines Disabled . | . . . . Max in Single Turn . | . . . . Machines Repaired . | . . . . Machines Dismantled . | . . . . Machines Sabotaged . | . . . . Overloaded Fab Kills . | . . . . Hacking | -11 -10 -10 -7 --------- Run | Yrd Mat Sub Scr Machines Accessed 1 | . . . 1 Terminals . | . . . . Fabricators . | . . . . Repair Stations . | . . . . Recycling Units . | . . . . Scanalyzers . | . . . . Garrison Access . | . . . . Total Hacks 7 | . . . 7 Successful 7 | . . . 7 Failed . | . . . . Catastrophic . | . . . . Database Lockouts . | . . . . Manual . | . . . . Terminals . | . . . . Fabricators . | . . . . Repair Stations . | . . . . Recycling Units . | . . . . Scanalyzers . | . . . . Garrison Access . | . . . . Terminal Hacks 7 | . . . 7 Robot Analysis 7 | . . . 7 Fabricator Hacks . | . . . . Repair Station Hacks . | . . . . Recycling Unit Hacks . | . . . . Scanalyzer . | . . . . Garrison Access Hacks . | . . . . Unauthorized Hacks . | . . . . Terminals . | . . . . Fabricators . | . . . . Repair Stations . | . . . . Recycling Units . | . . . . Scanalyzers . | . . . . Garrison Access . | . . . . Data Cores Recovered . | . . . . Used . | . . . . Hacking Detections . | . . . . Full Trace Events . | . . . . Feedback Events . | . . . . Feedback Blocked . | . . . . Robot Schematics Acquired . | . . . . Robots Built . | . . . . Authchips . | . . . . Time . | . . . . Total Robot Build Rating . | . . . . Part Schematics Acquired . | . . . . Parts Built . | . . . . Authchips . | . . . . Time . | . . . . Total Part Build Rating . | . . . . Parts Repaired . | . . . . Time . | . . . . Parts Recycled . | . . . . Recycled Matter . | . . . . Retrieved Matter . | . . . . Retrieved Components . | . . . . Parts Scanalyzed . | . . . . Part Schematics Acquired . | . . . . Parts Damaged . | . . . . Bothacking | -11 -10 -10 -7 ------------ Run | Yrd Mat Sub Scr Used RIF Installer . | . . . . Robots Hacked . | . . . . Non-combat . | . . . . Combat . | . . . . Robot Hacks Applied . | . . . . Relay Couplers Released . | . . . . Fabnet Peak Effective % . | . . . . Robots Rewired . | . . . . Allies Hacked . | . . . . Hacks Repelled . | . . . . Allies | -11 -10 -10 -7 -------- Run | Yrd Mat Sub Scr Total Allies . | . . . . Largest Group . | . . . . Highest-Rated Group . | . . . . Highest-Rated Ally . | . . . . Total Orders . | . . . . Ally Attacks . | . . . . Total Damage . | . . . . Kills . | . . . . Allies Corrupted . | . . . . Allies Melted 7 | . . . 7 Intel | -11 -10 -10 -7 ------- Run | Yrd Mat Sub Scr Active Infowar (turns) . | . . . . Robot Analysis Total 7 | . . . 7 Derelict Logs Recovered . | . . . . Drone Launches . | . . . . Drone Recoveries . | . . . . Exploration | -11 -10 -10 -7 ------------- Run | Yrd Mat Sub Scr Turns Passed 4838 | 115 1830 269 2624 Spaces Moved 2587 | 63 834 114 1576 Core 4 | 4 . . . Treads 330 | 59 262 . 9 Legs 1078 | . 572 114 392 Wheels 1175 | . . . 1175 Hover . | . . . . Flight . | . . . . Fastest Speed 50 | 50 160 190 115 Average Speed 152 | 153 180 190 134 Slowest Speed 190 | 160 190 190 190 Overloaded Moves . | . . . . Propulsion Burnouts . | . . . . Robots Hopped . | . . . . Potential Cave-ins . | . . . . Cave-ins Triggered . | . . . . Exploration Rate (%) 50 | 4 93 11 92 Regions Visited 3 Branch Regions 2 Pre-discovered Areas . | . . . . Known Exits Taken . | . . . . Unknown Exits Taken 3 | 1 1 1 . Scrap Searched 5 | . . . 5 Spaces Dug . | . . . . Terrain Destroyed . | . . . . Melee . | . . . . Projectile . | . . . . AOE . | . . . . Terrain Rammed . | . . . . Walls Destroyed . | . . . . Machines Disabled . | . . . . Actions | -11 -10 -10 -7 --------- Run | Yrd Mat Sub Scr Total 3325 | 82 1016 167 2060 Wait 579 | 2 75 53 449 Move 2584 | 62 833 113 1576 Hop . | . . . . Pick Up 34 | 12 10 1 11 Fast Attach 7 | . 3 . 4 Attach 8 | 6 2 . . Detach . | . . . . Swap 9 | . 5 . 4 Drop 16 | . 9 . 7 Fire 87 | . 78 . 9 Melee . | . . . . Ram . | . . . . Kick 1 | . 1 . . Crush . | . . . . Escape Stasis . | . . . . Rewire . | . . . . Trap . | . . . . Miscellaneous . | . . . . Route ------- -11/Scrapyard -10/Materials (discovered 5 exits: [*Mat x3] / [*Min] / [*Sub]) -10/Subcaves -7/Scraptown (discovered 2 exits: *Fac x2) History --------- Turn | Location | Event 70 | -11/Scrapyard | Discovered new exit (range 16) 116 | -11/Scrapyard | Entered Materials 219 | -10/Materials | Discovered new exit (range 11) 327 | -10/Materials | Build established: Mutant 1355 | -10/Materials | Discovered new exit (range 14) 1435 | -10/Materials | Discovered new exit (range 16) 1808 | -10/Materials | Core integrity fell below 50% 1836 | -10/Materials | Discovered new exit (range 16) 1932 | -10/Materials | Discovered new exit (range 7) 1946 | -10/Materials | Entered Subcaves 1947 | -10/Subcaves | Approached by a straggling Scientist 2024 | -10/Subcaves | Shifting Twisted Machinery released Barrage Gun 2043 | -10/Subcaves | Shifting Twisted Machinery released Sub. Optics 2052 | -10/Subcaves | Scientist uncovered a shortcut to Scraptown 2215 | -10/Subcaves | Entered Scraptown 2718 | -7/Scraptown | Discovered new exit (range 5) 3019 | -7/Scraptown | Visited Spacefarers 3073 | -7/Scraptown | Visited Assassins FH 3095 | -7/Scraptown | Visited Cyclists 3345 | -7/Scraptown | Visited Comm Corps 3417 | -7/Scraptown | Visited Junk Repository 3444 | -7/Scraptown | Visited Awakened 3464 | -7/Scraptown | Visited Shadow of the Wyrm 3522 | -7/Scraptown | Visited UFD Registry 3522 | -7/Scraptown | Registered with UFD as "Protonfunk" 3547 | -7/Scraptown | Visited Botcube Research 3564 | -7/Scraptown | Visited DA-N13 Charitable Foundation 3576 | -7/Scraptown | Found DCF Scrap (29 items) 3729 | -7/Scraptown | Visited Junk Repository 3759 | -7/Scraptown | Visited Infowarlord's Domain 3781 | -7/Scraptown | Visited A0-MCA Data Center 3792 | -7/Scraptown | Visited Scrap Suit Storage 3889 | -7/Scraptown | Visited Analyses Database 3918 | -7/Scraptown | Visited Chapter 10 3939 | -7/Scraptown | Visited Cartography Club 4034 | -7/Scraptown | Entered Cyclist Reading Room 4164 | -7/Scraptown | Met Optimus 4164 | -7/Scraptown | Accepted into 0bPrime 4564 | -7/Scraptown | Civil war broke out across Scraptown 4639 | -7/Scraptown | Identified exit to Factory 4642 | -7/Scraptown | Lost 5 allies 4754 | -7/Scraptown | Lost 4 allies 4835 | -7/Scraptown | Core integrity fell below 20% 4839 | -7/Scraptown | Destroyed by AA-6HW(x) with Makeshift Spear Last Messages --------------- resources are elsewhere, after all. Slug penetrates 3X-7R9(p). Slug penetrates Reinforced Barrier. Slug penetrates 3X-7R9(p). Slug penetrates Reinforced Barrier. 3X-7R9(p) suffers critical hit (Destroy). Ovr. Pulse Rifle melted. Mak. Salvage Targeting Computer melted. 7P-NU6(j) destroyed. 3X-7R9(p) destroyed. Acquired 19 matter. IT-EZ7(E) suffers critical hit (Burn). Ovr. Pulse Rifle suddenly begins malfunctioning. Destroyed Lgt. Ion Engine. IT-EZ7(E) destroyed. Ovr. Pulse Rifle recovered from malfunction. 29-ZQR(j) cannibalizes Lgt. Deuterium Engine to repair Lgt. Deuterium Engine. Critical hit (Impale). Destroyed VSS Leg. Map ----- +----------------------------------------------------+ | | | | | | | ?????????????????????????????????????????????????? | | ?????????????????????????????????????????????????? | | ?????????????????????????????????????????????????? | | ?????????????????????????????????????????????????? | | ?????????????????????????????????????????????????? | | ?????????????????????????????????????????????????? | | ?????????????????????????????????????????????????? | | ?????????????????????????????????????????????????? | | ?????????????????????????????????????????????????? | | ?????????????????????????????????????????????????? | | ?????????????????????????????????????????????????? | | ?????????????????????????????????????????????????? | | ?????????????????????????????????????????????????? | | ???????###?##########???####?????????????????????? | | ??????#"""?#""|##"""#??##*!##??????